bitfinex/quotes_SOLUSD_20240915
["timestamp","ask_amount","ask_price","bid_price","bid_amount"]
[1726426666788,20.0,134.02,134.01,0.8792389]
[1726426667458,23.776884,134.03,134.01,0.8792389]
[1726426667782,385.1,134.04,134.03,0.8792389]
[1726426669376,385.1,134.04,134.01,0.8792389]
[1726426669580,22.45,134.03,134.01,0.8792389]
[1726426669967,43.776884,134.02,134.01,0.8792389]
[1726426671086,428.876884,134.02,134.01,0.8792389]
[1726426671571,451.326884,134.02,134.01,0.8792389]
[1726426672563,428.876884,134.02,134.01,0.8792389]
[1726426673373,428.876884,134.02,133.95,22.152]
[1726426673374,23.776884,134.01,133.99,0.8792389]
[1726426673584,428.876884,134.02,134.01,0.8792389]
[1726426674187,385.1,134.02,134.01,0.8792389]
[1726426676994,43.776884,134.06,134.01,0.8792389]
[1726426677163,66.226884,134.06,134.04,0.8792389]
[1726426677485,43.776884,134.06,134.04,0.8792389]
[1726426679079,44.0893229,134.07,134.04,0.8792389]
[1726426680163,66.5393229,134.07,134.04,0.8792389]
[1726426680390,43.776884,134.05,134.02,0.8792389]
[1726426681182,20.0,134.05,134.04,0.8792389]
[1726426681571,42.45,134.05,134.04,0.8792389]
[1726426681779,20.0,134.05,134.04,0.8792389]
[1726426684383,385.1,134.06,134.04,0.8792389]
[1726426686573,0.3124389,134.07,134.06,0.8792389]
[1726426687894,385.1,134.1,134.06,0.8792389]
[1726426688096,409.4212289,134.1,134.09,0.8792389]
[1726426688310,385.6443449,134.1,134.09,0.8792389]
[1726426691777,0.5443449,134.1,134.09,0.8792389]
[1726426701319,20.5443449,134.1,134.09,0.8792389]
[1726426702288,20.0,134.09,134.07,0.8792389]
[1726426702590,43.776884,134.08,134.07,0.8792389]
[1726426702995,44.0701913,134.08,134.07,0.8792389]
[1726426703298,20.2933073,134.08,134.07,0.8792389]
[1726426705107,44.0701913,134.08,134.07,0.8792389]
[1726426706905,43.776884,134.07,134.05,0.8792389]
[1726426707219,51.235784,134.07,134.05,0.8792389]
[1726426708426,385.1,134.06,134.03,0.8792389]
[1726426708591,43.776884,134.07,134.03,0.8792389]
[1726426708998,43.776884,134.07,134.05,0.8792389]
[1726426709398,51.235684,134.07,134.05,0.8792389]
[1726426712294,43.776884,134.05,134.03,0.8792389]
[1726426713109,51.236784,134.05,134.03,0.8792389]
[1726426713616,43.776884,134.06,134.05,0.8792389]
[1726426714306,51.236184,134.06,134.05,0.8792389]
[1726426714617,51.236184,134.06,134.03,0.8792389]
[1726426715017,31.236884,134.05,134.03,0.8792389]
[1726426715200,43.776884,134.04,134.03,0.8792389]
[1726426715603,51.237284,134.04,134.03,0.8792389]
[1726426715812,43.776884,134.04,134.03,0.8792389]
[1726426717918,20.0,134.04,134.03,0.8792389]
[1726426718130,43.8191537,134.04,134.03,0.8792389]
[1726426721005,51.2795537,134.04,134.03,0.8792389]
[1726426722025,43.8191537,134.04,134.03,0.8792389]
[1726426723024,51.2795537,134.04,134.03,0.8792389]
[1726426724327,51.238384,134.02,134.01,0.8792389]
[1726426724536,43.776884,134.01,133.99,0.8792389]
[1726426724707,51.239484,134.0,133.99,0.8792389]
[1726426726740,51.240284,133.99,133.97,0.8792389]
[1726426727602,51.240684,133.98,133.97,0.8792389]
[1726426729211,43.776884,133.98,133.97,0.8792389]
[1726426737757,51.240684,133.98,133.97,0.8792389]
[1726426740233,20.0,133.98,133.97,0.8792389]
[1726426741625,43.776884,133.98,133.97,0.8792389]
[1726426751872,43.776884,133.98,133.92,15.01439683]
[1726426751873,43.776884,133.97,133.96,0.8792389]
[1726426752166,62.38102777,133.97,133.96,0.8792389]
[1726426753737,51.241184,133.97,133.96,0.8792389]
[1726426756066,43.776884,133.97,133.96,0.8792389]
[1726426756370,20.0,133.97,133.96,0.8792389]
[1726426757558,43.776884,133.97,133.96,0.8792389]
[1726426758266,392.5627,134.0,133.99,0.8792389]
[1726426759553,412.5627,134.0,133.99,0.8792389]
[1726426760071,436.339584,134.0,133.99,0.8792389]
[1726426760675,447.47942777,134.0,133.99,0.8792389]
[1726426761466,7.4638,133.98,133.97,0.8792389]
[1726426761650,51.240684,133.98,133.97,0.8792389]
[1726426764876,20.0,133.98,133.97,0.8792389]
[1726426765174,385.1,134.0,133.99,0.8792389]
[1726426766379,436.339484,134.0,133.99,0.8792389]
[1726426768562,51.239484,134.0,133.99,0.8792389]
[1726426774455,43.776884,134.0,133.99,0.8792389]
[1726426779183,0.0422697,134.01,133.99,0.8792389]
[1726426779355,0.0422697,134.01,133.99,22.17243573]
[1726426780061,0.0422697,134.01,134.0,15.01439683]
[1726426781086,0.0422697,134.01,133.99,7.1580389]
[1726426784074,0.0422697,134.01,133.99,5.1580389]
[1726426787192,0.0422697,134.01,133.97,15.5686]
[1726426788778,23.776884,134.0,133.97,15.5686]
[1726426790592,20.0422697,134.01,133.97,15.5686]
[1726426791091,0.0422697,134.01,133.97,15.5686]
[1726426799991,0.0422697,134.01,133.97,30.58299683]
[1726426801796,0.0422697,134.01,133.97,15.5686]
[1726426803305,0.0422697,134.01,133.97,30.58299683]
[1726426804291,0.0422697,134.01,133.98,15.01439683]
[1726426804887,0.0422697,134.01,133.97,30.58299683]
[1726426806318,0.0422697,134.01,133.97,15.5686]
[1726426807912,31.239584,134.0,133.97,15.5686]
[1726426808122,23.776884,134.0,133.97,15.5686]
[1726426810092,23.776884,133.98,133.95,6.2788]
[1726426810293,23.776884,134.0,133.95,6.2788]
[1726426810492,31.239984,134.0,133.95,6.2788]
[1726426810718,7.4633,133.99,133.95,6.2788]
[1726426811220,23.776884,133.98,133.95,6.2788]
[1726426811588,23.776884,133.99,133.95,6.2788]
[1726426813096,23.776884,133.98,133.94,15.7001]
[1726426815327,31.241084,133.98,133.94,15.7001]
[1726426815496,23.776884,133.96,133.94,15.7001]
[1726426815897,20.0,133.97,133.94,15.7001]
[1726426816090,385.1,134.0,133.96,15.01439683]
[1726426818708,7.5044697,134.01,133.96,15.01439683]
[1726426818913,43.776884,134.0,133.95,15.01439683]
[1726426820815,43.776884,134.0,133.94,15.7001]
[1726426821135,51.239584,134.0,133.94,30.71449683]
[1726426822008,426.2089,133.99,133.91,22.5226679]
[1726426822216,451.326884,133.98,133.91,22.5226679]
[1726426822428,428.876884,133.98,133.92,15.01439683]
[1726426822625,428.876884,133.98,133.91,37.53706473]
[1726426822832,451.326884,133.98,133.91,22.5226679]
[1726426823031,23.776884,133.96,133.91,22.5226679]
[1726426823235,20.0,133.96,133.91,22.5226679]
[1726426823541,451.326884,133.98,133.91,22.5226679]
[1726426823838,43.776884,133.96,133.91,22.5226679]
[1726426825441,51.242284,133.96,133.91,22.5226679]
[1726426827733,436.342284,133.96,133.91,22.5226679]
[1726426829844,428.876884,133.96,133.91,22.5226679]
[1726426830053,436.341884,133.96,133.91,22.5226679]
[1726426831728,7.4655,133.95,133.91,22.5226679]
[1726426831928,23.776884,133.94,133.91,22.5226679]
[1726426832536,23.776884,133.95,133.91,37.53706473]
[1726426833242,23.776884,133.95,133.91,22.5226679]
[1726426833661,23.776884,133.95,133.91,37.53706473]
[1726426833829,23.776884,133.95,133.91,22.5226679]
[1726426835038,31.242384,133.95,133.91,22.5226679]
[1726426835235,23.776884,133.95,133.91,22.5226679]
[1726426835929,23.776884,133.93,133.91,22.5226679]
[1726426836126,31.243484,133.93,133.91,22.5226679]
[1726426836353,23.776884,133.93,133.91,22.5226679]
[1726426837334,385.1,133.96,133.91,37.53706473]
[1726426838638,23.776884,133.95,133.91,37.53706473]
[1726426840352,23.776884,133.95,133.91,22.5226679]
[1726426843364,20.0,133.95,133.91,22.5226679]
[1726426844654,23.776884,133.96,133.91,22.5226679]
[1726426849569,23.776884,133.95,133.91,22.5226679]
[1726426851969,31.242284,133.95,133.91,22.5226679]
[1726426852272,31.241884,133.96,133.91,22.5226679]
[1726426852571,23.776884,133.94,133.91,22.5226679]
[1726426853072,23.776884,133.95,133.91,22.5226679]
[1726426855054,23.776884,133.96,133.91,37.53706473]
[1726426855269,385.1,133.97,133.93,15.01439683]
[1726426855559,385.1,133.97,133.96,30.05919683]
[1726426855752,385.1,133.97,133.96,15.0448]
[1726426857169,385.1,134.0,133.96,15.0448]
[1726426857455,385.1,133.99,133.96,15.0448]
[1726426861377,23.776884,133.98,133.96,15.0448]
[1726426863169,385.1,133.97,133.96,15.0448]
[1726426865283,385.1,133.97,133.96,30.05919683]
[1726426866490,385.1,133.97,133.91,6.2336679]
[1726426866491,23.776884,133.94,133.91,0.2087679]
[1726426866787,31.243984,133.92,133.91,0.2087679]
[1726426866985,51.243984,133.92,133.91,0.2087679]
[1726426867367,43.776884,133.92,133.91,0.2087679]
[1726426867872,51.243984,133.92,133.91,0.2087679]
[1726426869394,43.776884,133.92,133.91,0.2087679]
[1726426870267,20.0,133.95,133.91,0.2087679]
[1726426870479,27.4655,133.95,133.91,0.2087679]
[1726426871576,20.0,133.93,133.91,0.2087679]
[1726426873069,23.776884,133.94,133.91,0.2087679]
[1726426873269,32.66557588,133.99,133.92,21.8515]
[1726426873270,392.5637,133.99,133.92,21.8515]
[1726426874175,385.1,133.99,133.92,21.8515]
[1726426874373,385.1,133.99,133.93,23.47184691]
[1726426875368,0.0422697,134.01,133.95,23.47184691]
[1726426876487,0.0422697,134.01,133.93,23.47184691]
[1726426876876,0.0422697,134.01,133.95,23.47184691]
[1726426877090,0.0422697,134.01,133.96,15.3452]
[1726426877284,0.0422697,134.01,133.97,6.5063]
[1726426878701,0.0422697,134.01,133.97,29.97814691]
[1726426879003,0.0422697,134.01,133.99,23.47184691]
[1726426880001,0.0422697,134.01,133.97,29.97814691]
[1726426882699,0.0422697,134.01,134.0,15.3452]
[1726426884599,23.776884,134.07,134.0,15.3452]
[1726426888315,23.776884,134.05,133.99,15.3452]
[1726426888510,20.0,134.04,133.99,15.3452]
[1726426888922,23.776884,134.05,133.99,15.3452]
[1726426891620,30.48802109,134.1,133.99,38.81704691]
[1726426891621,23.776884,134.06,133.99,38.81704691]
[1726426891905,385.3510376,134.1,134.01,23.47184691]
[1726426892211,385.3510376,134.1,133.99,15.3452]
[1726426892212,7.4577,134.09,133.99,38.81704691]
[1726426892390,392.8081376,134.1,133.99,38.81704691]
[1726426892999,31.235584,134.08,133.99,38.81704691]
[1726426893293,23.776884,134.08,133.99,38.81704691]
[1726426897417,23.776884,134.08,133.99,15.3452]
[1726426897718,23.776884,134.08,133.99,38.81704691]
[1726426899212,23.776884,134.08,134.01,23.47184691]
[1726426902617,0.2510376,134.1,133.96,10.0]
[1726426902618,0.2510376,134.1,134.04,6.0773]
[1726426902798,0.2510376,134.1,134.05,23.47184691]
[1726426903001,0.2510376,134.1,134.04,6.0773]
[1726426903498,7.7082376,134.1,134.04,6.0773]
[1726426903709,0.2510376,134.1,134.04,6.0773]
[1726426904204,24.0279216,134.1,134.04,6.0773]
[1726426904718,31.4851216,134.1,134.04,6.0773]
[1726426906323,24.0279216,134.1,134.04,6.0773]
[1726426906524,0.2510376,134.1,134.07,23.47184691]
[1726426906696,0.2510376,134.1,134.09,45.45074691]
[1726426906900,0.2510376,134.1,134.09,21.9789]
[1726426907199,0.2510376,134.1,134.09,15.9016]
[1726426910704,0.2510376,134.1,134.05,21.9789]
[1726426913713,0.2510376,134.1,134.05,45.45074691]
[1726426915926,0.2510376,134.1,134.05,21.9789]
[1726426916821,0.2510376,134.1,134.05,45.45074691]
[1726426918928,0.2510376,134.1,134.07,23.47184691]
[1726426921118,0.2510376,134.1,134.05,21.9789]
[1726426922830,0.2510376,134.1,134.03,4.27792915]
[1726426923019,23.776884,134.09,134.03,4.27792915]
[1726426925809,23.776884,134.09,134.03,8.55814529]
[1726426926246,23.776884,134.09,134.03,4.27792915]
[1726426926929,0.2510376,134.1,134.04,23.47184691]
[1726426927335,0.2510376,134.1,134.05,4.27850144]
[1726426927539,0.2510376,134.1,134.07,22.1103]
[1726426929114,0.2510376,134.1,134.08,23.47184691]
[1726426933443,0.2510376,134.14,134.09,16.4518]
[1726426933614,0.2510376,134.14,134.12,23.47184691]
[1726426935943,0.2510376,134.14,134.13,22.4627]
[1726426936636,0.2510376,134.14,134.13,23.18923944]
[1726426937158,0.2510376,134.14,134.13,22.4627]
[1726426942448,0.2510376,134.18,134.13,22.4627]
[1726426942630,0.2510376,134.18,134.15,23.47184691]
[1726426945731,0.2510376,134.18,134.13,22.4627]
[1726426952539,0.2510376,134.18,134.14,23.47184691]
[1726426952943,0.2510376,134.18,134.13,22.4627]
[1726426953549,0.2510376,134.18,134.14,23.47184691]
[1726426954336,0.2510376,134.18,134.16,23.47184691]
[1726426956767,0.2510376,134.18,134.16,53.47184691]
[1726426960147,0.2510376,134.18,134.16,23.47184691]
[1726426965660,0.2510376,134.18,134.16,53.47184691]
[1726426968162,0.2510376,134.18,134.16,23.47184691]
[1726426970957,0.2510376,134.18,134.17,4.26158286]
[1726426971570,0.2510376,134.18,134.17,8.52322363]
[1726426971976,0.2510376,134.18,134.17,4.26158286]
[1726426979072,0.2510376,134.18,134.16,14.95462681]
[1726426980166,0.2510376,134.18,134.15,23.36565774]
[1726426983189,0.2510376,134.18,134.17,23.36565774]
[1726426984460,0.2510376,134.22,134.17,23.36565774]
[1726426984689,0.2510376,134.22,134.14,6.82586541]
[1726426984690,0.2510376,134.22,134.2,23.36565774]
[1726426988774,0.2510376,134.22,134.21,1.4890772]
[1726426990891,0.2510376,134.22,134.2,23.36565774]
[1726426996785,0.2510376,134.22,134.2,30.78568791]
[1726426997409,0.2510376,134.22,134.2,23.36565774]
[1726426997583,0.2510376,134.22,134.2,30.78568791]
[1726426998107,0.2510376,134.22,134.2,23.36565774]
[1726426998308,0.2510376,134.22,134.2,30.78215853]
[1726427000209,0.2510376,134.22,134.21,30.0]
[1726427001913,0.2510376,134.22,134.21,44.93677257]
[1726427004798,0.2510376,134.22,134.21,52.35173221]
[1726427004983,0.2510376,134.26,134.21,52.35173221]
[1726427005185,0.2510376,134.26,134.25,14.93677257]
[1726427007702,0.2510376,134.26,134.24,14.93677257]
[1726427008980,0.2510376,134.26,134.21,30.0]
[1726427009203,0.2510376,134.26,134.22,14.93677257]
[1726427011507,0.2510376,134.26,134.23,14.93677257]
[1726427011909,0.2510376,134.26,134.24,14.93677257]
[1726427012104,0.2510376,134.26,134.25,14.93677257]
[1726427012694,0.2510376,134.26,134.24,14.93677257]
[1726427015321,0.2510376,134.26,134.25,14.93677257]
[1726427016116,0.2510376,134.26,134.24,14.93677257]
[1726427017507,0.2510376,134.26,134.25,14.93677257]
[1726427022202,0.2510376,134.26,134.22,2.96976541]
[1726427022415,0.2510376,134.26,134.25,14.93677257]
[1726427032527,0.2510376,134.26,134.25,19.19603244]
[1726427032728,0.2510376,134.3,134.25,19.19603244]
[1726427032729,0.2510376,134.3,134.27,6.0444]
[1726427032936,0.2510376,134.3,134.28,20.0]
[1726427033235,0.2510376,134.3,134.29,14.93677257]
[1726427033711,0.2510376,134.3,134.29,19.19302474]
[1726427034325,0.2510376,134.34,134.29,49.19302474]
[1726427034532,0.2510376,134.34,134.33,14.93677257]
[1726427035110,0.2510376,134.34,134.33,19.19302474]
[1726427035310,0.2510376,134.34,134.33,14.93677257]
[1726427041341,0.2510376,134.34,134.31,14.93677257]
[1726427041529,0.2510376,134.34,134.3,14.93677257]
[1726427041836,0.2510376,134.34,134.31,14.93677257]
[1726427046923,0.2510376,134.34,134.32,14.93677257]
[1726427050322,0.2510376,134.34,134.33,14.93677257]
[1726427050528,0.2510376,134.34,134.28,30.0]
[1726427050729,0.2510376,134.34,134.29,14.93677257]
[1726427052225,0.2510376,134.34,134.3,14.93677257]
[1726427053138,0.2510376,134.34,134.31,14.93677257]
[1726427054544,0.2510376,134.34,134.33,14.93677257]
[1726427060853,0.2510376,134.34,134.33,23.1687]
[1726427061039,0.2510376,134.34,134.33,38.10547257]
[1726427064252,0.2510376,134.38,134.33,58.10547257]
[1726427064536,0.2510376,134.38,134.33,53.1687]
[1726427064747,0.2510376,134.38,134.36,14.93677257]
[1726427065242,0.2510376,134.38,134.37,14.93677257]
[1726427065439,0.2510376,134.38,134.33,53.1687]
[1726427065440,0.2510376,134.38,134.34,20.0]
[1726427065643,0.2510376,134.38,134.37,14.93677257]
[1726427069849,0.2510376,134.38,134.37,31.45687257]
[1726427070158,0.2510376,134.38,134.37,38.10547257]
[1726427071561,0.2510376,134.38,134.37,23.1687]
[1726427071750,0.2510376,134.38,134.37,38.10547257]
[1726427073073,0.2510376,134.38,134.37,23.1687]
[1726427073258,0.2510376,134.38,134.37,38.10547257]
[1726427074057,0.2510376,134.38,134.37,68.10547257]
[1726427074663,0.2510376,134.38,134.37,38.10547257]
[1726427075061,0.2510376,134.38,134.37,53.1687]
[1726427075369,0.2510376,134.38,134.37,68.10547257]
[1726427076352,0.2510376,134.38,134.37,61.45687257]
[1726427076942,0.2510376,134.38,134.37,31.45687257]
[1726427077563,0.2510376,134.38,134.34,16.6313]
[1726427077747,0.2510376,134.38,134.33,14.93677257]
[1726427078770,0.2510376,134.38,134.31,22.33908991]
[1726427079251,0.2510376,134.38,134.3,23.0981]
[1726427079454,0.2510376,134.38,134.31,14.93677257]
[1726427080168,0.2510376,134.38,134.32,14.93677257]
[1726427080471,0.2510376,134.38,134.33,14.93677257]
[1726427081762,0.2510376,134.38,134.32,14.93677257]
[1726427081967,0.2510376,134.38,134.31,14.93677257]
[1726427082348,6.5187376,134.38,134.3,46.37762595]
[1726427082671,6.5187376,134.38,134.31,30.0]
[1726427083378,6.5187376,134.38,134.3,46.37762595]
[1726427083562,6.5187376,134.38,134.35,14.93677257]
[1726427083747,6.5187376,134.38,134.3,31.44085338]
[1726427084081,6.5187376,134.38,134.31,14.93677257]
[1726427085363,6.5187376,134.38,134.32,14.93677257]
[1726427089478,6.5187376,134.38,134.3,31.44085338]
[1726427089774,6.5187376,134.38,134.32,14.93677257]
[1726427089975,6.5187376,134.38,134.31,14.93677257]
[1726427090154,6.5187376,134.38,134.3,31.56807257]
[1726427090655,6.5187376,134.38,134.32,14.93677257]
[1726427090848,6.5187376,134.38,134.33,1.48856652]
[1726427091048,6.5187376,134.38,134.33,16.42533909]
[1726427091280,6.5187376,134.38,134.34,16.42525119]
[1726427091578,6.5187376,134.38,134.34,14.93677257]
[1726427092385,6.5187376,134.38,134.33,14.93677257]
[1726427092559,6.5187376,134.38,134.32,14.93677257]
[1726427093463,6.5187376,134.38,134.33,14.93677257]
[1726427094375,6.5187376,134.38,134.35,14.93677257]
[1726427094580,6.5187376,134.38,134.34,14.93677257]
[1726427096759,4.5187376,134.38,134.34,14.93677257]
[1726427097176,4.5187376,134.38,134.31,14.93677257]
[1726427097372,4.5187376,134.38,134.3,31.56807257]
[1726427098774,4.5187376,134.38,134.31,14.93677257]
[1726427099172,23.776884,134.37,134.28,8.0380031]
[1726427099374,23.776884,134.37,134.31,14.93677257]
[1726427100062,23.776884,134.37,134.32,14.93677257]
[1726427100268,4.5187376,134.38,134.32,14.93677257]
[1726427100571,23.776884,134.37,134.3,14.93677257]
[1726427100770,23.776884,134.37,134.29,14.93677257]
[1726427101182,23.776884,134.37,134.3,14.93677257]
[1726427102878,4.5187376,134.38,134.34,14.93677257]
[1726427103086,4.5187376,134.38,134.33,14.93677257]
[1726427103874,4.5187376,134.38,134.34,14.93677257]
[1726427104077,6.321,134.4,134.35,14.93677257]
[1726427105784,6.321,134.4,134.36,14.93677257]
[1726427106091,6.321,134.4,134.35,14.93677257]
[1726427106476,4.5187,134.41,134.38,14.93677257]
[1726427106874,385.8510376,134.42,134.38,14.93677257]
[1726427108491,385.8510376,134.42,134.37,14.93677257]
[1726427108681,385.8510376,134.42,134.36,14.93677257]
[1726427108890,385.8510376,134.42,134.37,14.93677257]
[1726427109776,385.8510376,134.42,134.39,14.93677257]
[1726427109991,385.8510376,134.42,134.4,14.93677257]
[1726427110681,385.8510376,134.42,134.41,14.93677257]
[1726427111075,385.8510376,134.42,134.4,14.93677257]
[1726427111277,385.8510376,134.42,134.39,14.93677257]
[1726427111474,385.8510376,134.42,134.4,14.93677257]
[1726427111881,385.8510376,134.42,134.41,14.93677257]
[1726427112984,385.8510376,134.42,134.4,14.93677257]
[1726427115480,385.8510376,134.42,134.38,14.93677257]
[1726427115697,385.8510376,134.42,134.39,14.93677257]
[1726427117006,385.8510376,134.42,134.37,14.93677257]
[1726427117204,0.2510376,134.42,134.37,14.93677257]
[1726427118076,0.2510376,134.42,134.33,15.76]
[1726427118077,24.0279216,134.42,134.35,14.93677257]
[1726427118300,24.0279216,134.42,134.36,14.93677257]
[1726427121175,31.4675216,134.42,134.35,14.93677257]
[1726427121377,24.0279216,134.42,134.36,14.93677257]
[1726427123083,24.0279216,134.42,134.37,14.93677257]
[1726427123284,24.0279216,134.42,134.38,14.93677257]
[1726427123483,0.2510376,134.42,134.38,14.93677257]
[1726427124406,0.2510376,134.42,134.33,15.76]
[1726427124700,0.2510376,134.42,134.38,14.93677257]
[1726427125082,0.2510376,134.42,134.39,14.93677257]
[1726427125493,0.2510376,134.42,134.4,14.93677257]
[1726427125805,0.2510376,134.42,134.41,14.93677257]
[1726427125989,0.2510376,134.42,134.4,14.93677257]
[1726427127103,0.2510376,134.42,134.35,20.0]
[1726427127283,0.2510376,134.42,134.36,30.0]
[1726427127485,0.2510376,134.42,134.39,14.93677257]
[1726427128005,0.2510376,134.42,134.4,14.93677257]
[1726427128307,0.2510376,134.42,134.39,14.93677257]
[1726427128879,0.2510376,134.42,134.4,14.93677257]
[1726427129087,0.2510376,134.42,134.41,14.93677257]
[1726427130578,0.2510376,134.42,134.38,16.0696]
[1726427130898,0.2510376,134.42,134.4,14.93677257]
[1726427131097,0.2510376,134.42,134.38,16.0696]
[1726427131412,0.2510376,134.42,134.4,14.93677257]
[1726427132408,0.2510376,134.42,134.41,14.93677257]
[1726427132880,0.2510376,134.42,134.4,14.93677257]
[1726427133598,0.2510376,134.42,134.41,14.93677257]
[1726427133986,0.2510376,134.42,134.39,14.93677257]
[1726427134984,0.2510376,134.42,134.35,16.0696]
[1726427135187,0.2510376,134.42,134.37,14.93677257]
[1726427136491,0.2510376,134.42,134.39,14.93677257]
[1726427136810,0.2510376,134.42,134.4,14.93677257]
[1726427138794,0.2510376,134.42,134.41,14.93677257]
[1726427142394,0.2510376,134.42,134.4,14.93677257]
[1726427142584,0.2510376,134.42,134.39,14.93677257]
[1726427142911,0.2510376,134.42,134.4,14.93677257]
[1726427144314,0.2510376,134.42,134.41,14.93677257]
[1726427151310,0.2510376,134.42,134.4,14.93677257]
[1726427152596,0.2510376,134.42,134.35,16.0696]
[1726427152821,0.2510376,134.42,134.37,14.93677257]
[1726427153014,0.2510376,134.42,134.36,14.93677257]
[1726427153204,0.2510376,134.42,134.37,14.93677257]
[1726427153800,0.2510376,134.42,134.38,14.93677257]
[1726427154814,0.2510376,134.42,134.36,20.0]
[1726427154815,0.2510376,134.42,134.39,14.93677257]
[1726427155218,0.2510376,134.42,134.38,14.93677257]
[1726427155518,0.2510376,134.42,134.39,14.93677257]
[1726427160030,0.2510376,134.42,134.35,16.0696]
[1726427160031,24.0279216,134.42,134.35,16.0696]
[1726427160317,24.0279216,134.42,134.36,14.93677257]
[1726427160522,24.0279216,134.42,134.37,14.93677257]
[1726427161417,24.0279216,134.42,134.34,14.93677257]
[1726427162317,23.776884,134.4,134.31,15.3741]
[1726427162632,23.776884,134.4,134.32,30.0]
[1726427162810,418.9624,134.41,134.3,14.93677257]
[1726427162811,23.776884,134.38,134.3,14.93677257]
[1726427163331,23.776884,134.38,134.31,14.93677257]
[1726427163823,46.216884,134.38,134.32,6.79655495]
[1726427164031,23.776884,134.36,134.31,6.79655495]
[1726427164338,23.776884,134.36,134.3,6.79876315]
[1726427164509,23.776884,134.36,134.31,6.79876315]
[1726427164831,23.776884,134.36,134.3,6.79876315]
[1726427165329,34.699284,134.36,134.28,0.2510376]
[1726427165513,34.699284,134.36,134.31,6.79999822]
[1726427165906,34.699284,134.36,134.29,6.79999822]
[1726427166116,42.141884,134.36,134.29,6.79999822]
[1726427166535,34.699284,134.36,134.28,15.18781017]
[1726427167438,10.9224,134.36,134.31,14.93677257]
[1726427169125,23.776884,134.35,134.3,14.93677257]
[1726427169322,23.776884,134.35,134.29,14.93677257]
[1726427169708,23.776884,134.35,134.28,0.2510376]
[1726427170520,23.776884,134.35,134.28,15.18781017]
[1726427170846,23.776884,134.35,134.29,14.93677257]
[1726427175233,23.776884,134.35,134.28,15.18781017]
[1726427176631,23.776884,134.33,134.28,15.18781017]
[1726427176831,23.776884,134.35,134.28,15.18781017]
[1726427178650,23.776884,134.35,134.29,14.93677257]
[1726427180648,10.9224,134.36,134.31,14.93677257]
[1726427182555,385.6,134.37,134.33,14.93677257]
[1726427183455,385.6,134.37,134.34,14.93677257]
[1726427188050,385.6,134.38,134.34,14.93677257]
[1726427188566,385.6,134.38,134.35,14.93677257]
[1726427190063,385.6,134.38,134.34,14.93677257]
[1726427192031,385.6,134.38,134.29,20.0]
[1726427192233,385.6,134.38,134.28,9.39180491]
[1726427192234,23.776884,134.37,134.31,14.93677257]
[1726427192434,23.776884,134.37,134.29,14.93677257]
[1726427192930,30.370484,134.37,134.28,0.2510376]
[1726427193251,37.812984,134.37,134.28,0.2510376]
[1726427193946,415.970484,134.37,134.28,15.18781017]
[1726427194249,423.412584,134.37,134.28,15.18781017]
[1726427194451,423.412584,134.37,134.28,0.2510376]
[1726427194650,445.802584,134.37,134.28,0.2510376]
[1726427196242,445.802584,134.37,134.28,15.18781017]
[1726427197951,445.802584,134.37,134.28,0.2510376]
[1726427197952,28.295584,134.35,134.28,0.2510376]
[1726427199261,35.738784,134.35,134.28,0.2510376]
[1726427199559,28.295584,134.35,134.28,0.2510376]
[1726427199935,413.895584,134.35,134.28,0.2510376]
[1726427204869,390.1187,134.35,134.29,14.93677257]
[1726427205073,390.1187,134.35,134.31,14.93677257]
[1726427205239,390.1187,134.35,134.29,14.93677257]
[1726427205567,390.1187,134.35,134.28,15.18781017]
[1726427205868,4.5187,134.35,134.28,15.18781017]
[1726427206237,23.776884,134.34,134.28,15.18781017]
[1726427207363,23.776884,134.34,134.28,0.2510376]
[1726427218849,23.776884,134.34,134.29,14.93677257]
[1726427220267,23.776884,134.34,134.28,15.18781017]
[1726427221846,390.1187,134.35,134.29,14.93677257]
[1726427222061,385.6,134.35,134.31,14.93677257]
[1726427222258,385.6,134.35,134.33,14.93677257]
[1726427222463,385.6,134.35,134.34,14.93677257]
[1726427223457,391.7304,134.41,134.34,14.93677257]
[1726427223653,391.7304,134.41,134.36,14.93677257]
[1726427223881,391.7304,134.41,134.35,14.93677257]
[1726427224065,391.7304,134.41,134.36,14.93677257]
[1726427224263,23.776884,134.4,134.36,14.93677257]
[1726427224490,23.776884,134.4,134.35,14.93677257]
[1726427224793,23.776884,134.4,134.34,14.93677257]
[1726427226098,23.776884,134.4,134.28,19.47997929]
[1726427226099,23.776884,134.4,134.33,14.93677257]
[1726427226264,23.776884,134.4,134.32,14.93677257]
[1726427226591,46.166884,134.4,134.32,14.93677257]